Cogmind - Beta 15 @@@ ROGUE MODE // 2025.05.30 @ 01:58:45 // Winter2019/RPGLIKE Player: admiral_len Result: Destroyed by FU-A7Q(R) with Subdweller Shrapnel Launcher Performance ------------- Evolutions (0) 0 Regions Visited (3) 600 Robots Destroyed (14) 70 Value Destroyed (335) 335 Prototype IDs (0) 0 Alien Tech Used (0) 0 Bonus (0) 0 TOTAL SCORE: 1005 Bonus ------- None Cogmind --------- Core Integrity 0/650 Matter 282/300 Energy 160/160 System Corruption 0% Temperature Cool (0) Movement Walking (120) Location -10/Subcaves Parts ------- > --- POWER (1) -------- Light Nuclear Core > --- PROPULSION (2) --- Aluminum Leg Aluminum Leg > --- UTILITY (2) ------ Signal Interpreter > --- WEAPON (2) ------- Assault Rifle Assault Rifle > --- INVENTORY (0) ---- (None) Peak State ------------ > --- POWER ------------ Improved Ion Engine > --- PROPULSION ------- Aluminum Leg Aluminum Leg > --- UTILITY ---------- Large Battery Trap Extractor > --- WEAPON ----------- Medium Laser Small Laser > --- INVENTORY -------- (None) [Rating: 9] Favorites ----------- Power Improved Ion Engine Engine Improved Ion Engine Power Core Light Nuclear Core Propulsion Aluminum Leg Leg Aluminum Leg Utility Signal Interpreter Device Trap Extractor Storage Large Battery Processor Signal Interpreter Weapon Assault Rifle Energy Gun Small Laser Ballistic Gun Assault Rifle Build | -11 -10 -10 -10 ------- Run | Yrd Mat Min Sub Slots Evolved 3 | 3 . . . Power . | . . . . Propulsion 1 | 1 . . . Utility 1 | 1 . . . Weapon 1 | 1 . . . Parts Attached 13 | 5 7 1 . Power 3 | 1 1 1 . Engine 2 | 1 1 . . Core 1 | . . 1 . Reactor . | . . . . Propulsion 3 | 2 1 . . Treads . | . . . . Leg 3 | 2 1 . . Wheel . | . . . . Hover . | . . . . Flight . | . . . . Utility 3 | . 3 . . Device 1 | . 1 . . Storage 1 | . 1 . . Processor 1 | . 1 . . Hackware . | . . . . Protection . | . . . . Artifact . | . . . . Weapon 4 | 2 2 . . Energy Gun 2 | 2 . . . Energy Cannon . | . . . . Ballistic Gun 2 | . 2 . . Ballistic Cannon . | . . . . Launcher . | . . . . Special Weapon . | . . . . Impact Weapon . | . . . . Slashing Weapon . | . . . . Piercing Weapon . | . . . . Special Melee Weapon . | . . . . Unidentified Prototypes . | . . . . Parts Lost . | . . . . Power . | . . . . Propulsion . | . . . . Utility . | . . . . Weapon . | . . . . Highest Loss Streak . | . . . . To Critical Strikes . | . . . . Average Backups . | . . . . Power . | . . . . Propulsion . | . . . . Utility . | . . . . Weapon . | . . . . Tool/Special . | . . . . Unused Backups . | . . . . Power . | . . . . Propulsion . | . . . . Utility . | . . . . Weapon . | . . . . Tool/Special . | . . . . Average Slot Usage (%) 83 | . 82 85 85 Engine 8 | . 14 4 . Core 5 | . . 9 14 Leg 28 | . 28 28 28 Storage 4 | . 9 . . Processor 8 | . 1 14 14 Energy Gun 5 | . 12 . . Ballistic Gun 22 | . 15 28 28 Peak Build Rating 9 | 5 9 8 8 Average Rating 7 | 3 6 7 8 On Entrance 5 | . 5 7 8 Naked Turns . | . . . . Heaviest Build 15 | 6 15 11 9 Greatest Support 20 | 20 20 20 20 Greatest Overweight (x) . | . . . . Average Overweight (x) . | . . . . Largest Inventory Capacity . | . . . . Average Capacity . | . . . . Most Carried . | . . . . Average Carried . | . . . . Final Capacity . | . . . . Final Carried . | . . . . Class Distribution -------------------- 100% | Mutant Dominant Class ---------------- Mutant | -10/Materials Mutant | -10/Mines Mutant | -10/Subcaves Resources | -11 -10 -10 -10 ----------- Run | Yrd Mat Min Sub Matter Collected 539 | 136 201 100 102 Remotely . | . . . . Salvage Created 570 | . 209 283 78 Parts 22 | . 6 11 5 Haulers Intercepted . | . . . . Recyclers Shooed . | . . . . Parts Field Recycled . | . . . . Retrieved Matter . | . . . . Parts Self-Destructed . | . . . . Prevented . | . . . . Kills | -11 -10 -10 -10 ------- Run | Yrd Mat Min Sub Combat Hostiles Destroyed 11 | . 4 5 2 Guns 11 | . 4 5 2 Classes Destroyed 5 | . 2 2 1 Worker 2 | . 2 . . Recycler 1 | . . 1 . Swarmer 3 | . . 3 . Grunt 6 | . 4 2 . Subdweller 2 | . . . 2 Best Kill Streak 4 | . 4 3 1 Combat Bots Only 3 | . 2 3 1 Max Kills in Single Turn 2 | . 2 1 1 Gunslinging . | . . . . Exploded . | . . . . Melee . | . . . . Uniques/NPCs Destroyed . | . . . . Combat | -11 -10 -10 -10 -------- Run | Yrd Mat Min Sub Hostile Shots Fired 84 | . 26 26 32 Missed 20 | . 7 7 6 Hits 64 | . 19 19 26 Projectile 64 | . 19 19 26 AOE 2 | . . . 2 Critical Strikes 1 | . . . 1 Damage Taken 884 | . 190 144 550 Core 726 | . 156 117 453 Absorbed by Shields . | . . . . Redirected to Core 536 | . 114 77 345 Ignored by Resistances 77 | . 19 19 39 Core Remaining (%) 100 | 100 . . . Volleys Fired 55 | . 20 15 20 Largest 2 | . 2 2 2 Hottest 90 | . 90 40 40 Shots Fired 110 | . 40 30 40 Gun 110 | . 40 30 40 Cannon . | . . . . Launcher . | . . . . Special . | . . . . Kinetic 72 | . 2 30 40 Thermal 38 | . 38 . . Explosive . | . . . . Electromagnetic . | . . . . Robot Hit Streak 32 | . 23 10 32 Robot Miss Streak 2 | . 2 2 1 Penetration Max . | . . . . Secondary Targets 2 | . . 1 1 Max Gunslinging Chain 1 | . . 1 1 Shots Hit Robots 90 | . 32 21 37 Core Hits 27 | . 10 11 6 Critical Kills . | . . . . Critical Parts Destroyed 1 | . . 1 . Critical Strikes 3 | . 2 1 . Burn 2 | . 2 . . Destroy 1 | . . 1 . Melee Attacks . | . . . . Impact . | . . . . Slashing . | . . . . Piercing . | . . . . Sneak Attacks . | . . . . Combat Hostiles . | . . . . Follow-up Attacks . | . . . . Damage Inflicted 940 | . 398 269 273 Guns 923 | . 392 258 273 Cannons . | . . . . Explosions . | . . . . Melee . | . . . . Ramming 17 | . 6 11 . Kinetic 544 | . 13 258 273 Thermal 379 | . 379 . . Explosive . | . . . . Electromagnetic . | . . . . Impact . | . . . . Slashing . | . . . . Piercing . | . . . . Highest Corruption . | . . . . Average Corruption . | . . . . Corruption Purged . | . . . . Corruption Blocked . | . . . . Overload Shots . | . . . . Overflow Damage . | . . . . Projectiles . | . . . . Explosions . | . . . . Melee . | . . . . Knockbacks . | . . . . Impact . | . . . . Kinetic . | . . . . Secondary . | . . . . Self-Inflicted Damage . | . . . . Shots . | . . . . Rammed . | . . . . Targets Rammed 8 | . 3 5 . Kicked 8 | . 3 5 . Crushed . | . . . . Highest Temperature . | . . . . Average Temperature . | . . . . Received Heat Transfer 135 | . 114 21 . Siege Activations . | . . . . Martial Activations . | . . . . Shielding Activations . | . . . . Robots Disrupted . | . . . . Combat Hostiles . | . . . . Robots Corrupted . | . . . . Combat Hostiles . | . . . . Parts Fried . | . . . . Impact Corruptions . | . . . . Robots Melted . | . . . . Combat Hostiles . | . . . . Parts Melted 2 | . 2 . . Heat Transferred 1152 | . 1152 . . Parts Sabotaged . | . . . . Parts Stolen . | . . . . Parts Stripped . | . . . . Power Chain Reactions . | . . . . Alert | -11 -10 -10 -10 ------- Run | Yrd Mat Min Sub Maximum Alert Level . | . . . . Low Security (%) 100 | 100 100 100 . Level 1 . | . . . . Level 2 . | . . . . Level 3 . | . . . . Level 4 . | . . . . Level 5 . | . . . . High Security . | . . . . Max Security . | . . . . Peak Influence 95 | . 95 70 . Initial . | . . . . Average 12 | . 16 9 . Influence Increases 250 | . 125 125 . Destroy 0b10 Robot/C 180 | . 80 100 . Destroy 0b10 Robot/NC 15 | . 10 5 . Destroy Leader 40 | . 20 20 . Partial Spotted 15 | . 15 . . Influence Decreases 250 | . 125 103 22 Entered New Map 12 | . . . 12 Time Decay 238 | . 125 103 10 Squads Dispatched 2 | . 2 . . Investigation 1 | . 1 . . Extermination . | . . . . Reinforcement 1 | . 1 . . Assault . | . . . . Garrison . | . . . . Intercept . | . . . . Searches Triggered . | . . . . Construction Impeded . | . . . . Haulers Reinforced . | . . . . Active Scanning Responses . | . . . . Cargo Convoy Interrupts . | . . . . Stealth | -11 -10 -10 -10 --------- Run | Yrd Mat Min Sub Distress Signals 2 | . 2 . . Communications Jammed . | . . . . Distress Signals . | . . . . Times Spotted 18 | . 9 5 4 Peak Tracking Total 4 | . 4 3 2 Tactical Retreats . | . . . . Traps | -11 -10 -10 -10 ------- Run | Yrd Mat Min Sub Traps Triggered 2 | . 2 . . Indirectly . | . . . . Trap Hack Attempts . | . . . . Triggered . | . . . . Disarmed . | . . . . Reprogrammed . | . . . . Reused . | . . . . Traps Extracted . | . . . . Installed . | . . . . Triggered . | . . . . Machines | -11 -10 -10 -10 ---------- Run | Yrd Mat Min Sub Machines Disabled . | . . . . Max in Single Turn . | . . . . Machines Repaired . | . . . . Machines Dismantled . | . . . . Machines Sabotaged . | . . . . Overloaded Fab Kills . | . . . . Hacking | -11 -10 -10 -10 --------- Run | Yrd Mat Min Sub Machines Accessed 1 | . 1 . . Terminals 1 | . 1 . . Fabricators . | . . . . Repair Stations . | . . . . Recycling Units . | . . . . Scanalyzers . | . . . . Garrison Access . | . . . . Total Hacks 1 | . 1 . . Successful 1 | . 1 . . Failed . | . . . . Catastrophic . | . . . . Database Lockouts . | . . . . Manual . | . . . . Terminals 1 | . 1 . . Fabricators . | . . . . Repair Stations . | . . . . Recycling Units . | . . . . Scanalyzers . | . . . . Garrison Access . | . . . . Terminal Hacks 1 | . 1 . . Locate Traps 1 | . 1 . . Fabricator Hacks . | . . . . Repair Station Hacks . | . . . . Recycling Unit Hacks . | . . . . Scanalyzer . | . . . . Garrison Access Hacks . | . . . . Unauthorized Hacks . | . . . . Terminals . | . . . . Fabricators . | . . . . Repair Stations . | . . . . Recycling Units . | . . . . Scanalyzers . | . . . . Garrison Access . | . . . . Data Cores Recovered . | . . . . Used . | . . . . Hacking Detections 1 | . 1 . . Full Trace Events . | . . . . Feedback Events . | . . . . Feedback Blocked . | . . . . Robot Schematics Acquired . | . . . . Robots Built . | . . . . Authchips . | . . . . Time . | . . . . Total Robot Build Rating . | . . . . Part Schematics Acquired . | . . . . Parts Built . | . . . . Authchips . | . . . . Time . | . . . . Total Part Build Rating . | . . . . Parts Repaired . | . . . . Time . | . . . . Parts Recycled . | . . . . Recycled Matter . | . . . . Retrieved Matter . | . . . . Retrieved Components . | . . . . Parts Scanalyzed . | . . . . Part Schematics Acquired . | . . . . Parts Damaged . | . . . . Bothacking | -11 -10 -10 -10 ------------ Run | Yrd Mat Min Sub Used RIF Installer . | . . . . Robots Hacked . | . . . . Non-combat . | . . . . Combat . | . . . . Robot Hacks Applied . | . . . . Relay Couplers Released . | . . . . Fabnet Peak Effective % . | . . . . Robots Rewired . | . . . . Allies Hacked . | . . . . Hacks Repelled . | . . . . Allies | -11 -10 -10 -10 -------- Run | Yrd Mat Min Sub Total Allies . | . . . . Largest Group . | . . . . Highest-Rated Group . | . . . . Highest-Rated Ally . | . . . . Total Orders . | . . . . Ally Attacks . | . . . . Total Damage . | . . . . Kills . | . . . . Allies Corrupted . | . . . . Allies Melted . | . . . . Intel | -11 -10 -10 -10 ------- Run | Yrd Mat Min Sub Active Infowar (turns) . | . . . . Robot Analysis Total . | . . . . Derelict Logs Recovered 1 | . . 1 . Drone Launches . | . . . . Drone Recoveries . | . . . . Exploration | -11 -10 -10 -10 ------------- Run | Yrd Mat Min Sub Turns Passed 1899 | 37 853 786 223 Spaces Moved 1362 | 34 607 602 119 Core 15 | 15 . . . Treads . | . . . . Legs 1347 | 19 607 602 119 Wheels . | . . . . Hover . | . . . . Flight . | . . . . Fastest Speed 50 | 50 120 120 120 Average Speed 119 | 89 120 120 120 Slowest Speed 120 | 120 120 120 120 Overloaded Moves . | . . . . Propulsion Burnouts . | . . . . Robots Hopped . | . . . . Potential Cave-ins . | . . . . Cave-ins Triggered . | . . . . Exploration Rate (%) 46 | 3 92 86 6 Regions Visited 3 Branch Regions 2 Pre-discovered Areas 1 | . . 1 . Known Exits Taken 2 | . 1 1 . Unknown Exits Taken 1 | 1 . . . Scrap Searched 1 | . . 1 . Spaces Dug . | . . . . Terrain Destroyed . | . . . . Melee . | . . . . Projectile . | . . . . AOE . | . . . . Terrain Rammed . | . . . . Walls Destroyed . | . . . . Machines Disabled . | . . . . Actions | -11 -10 -10 -10 --------- Run | Yrd Mat Min Sub Total 1522 | 38 689 634 161 Wait 74 | . 41 11 22 Move 1359 | 33 606 601 119 Hop . | . . . . Pick Up . | . . . . Fast Attach 16 | 5 10 1 . Attach . | . . . . Detach . | . . . . Swap . | . . . . Drop 7 | . 6 1 . Fire 55 | . 20 15 20 Melee . | . . . . Ram . | . . . . Kick 8 | . 3 5 . Crush . | . . . . Escape Stasis . | . . . . Rewire . | . . . . Trap . | . . . . Miscellaneous 3 | . 3 . . Route ------- -11/Scrapyard -10/Materials (discovered 3 exits: *Mat x2 / *Min) -10/Mines (discovered 3 exits: *Mat x2 / *Sub) -10/Subcaves History --------- Turn | Location | Event 7 | -11/Scrapyard | Discovered new exit (range 16) 9 | -11/Scrapyard | Upgraded with Propulsion slot (x1) 9 | -11/Scrapyard | Upgraded with Utility slot (x1) 9 | -11/Scrapyard | Upgraded with Weapon slot (x1) 38 | -11/Scrapyard | Entered Materials 39 | -10/Materials | Met a group of wandering Federalists 301 | -10/Materials | Build established: Mutant 307 | -10/Materials | Discovered new exit (range 16) 542 | -10/Materials | Discovered new exit (range 14) 726 | -10/Materials | Discovered new exit (range 16) 890 | -10/Materials | Identified exit to Mines 891 | -10/Materials | Entered Mines 959 | -10/Mines | Learned location of Zion (-7) 1241 | -10/Mines | Discovered new exit (range 6) 1327 | -10/Mines | Discovered new exit (range 10) 1552 | -10/Mines | Discovered new exit (range 6) 1566 | -10/Mines | Reached level 2 1587 | -10/Mines | Identified exit to Materials 1675 | -10/Mines | Identified exit to Subcaves 1677 | -10/Mines | Entered Subcaves 1678 | -10/Subcaves | Approached by a straggling Scientist 1817 | -10/Subcaves | Core integrity fell below 50% 1895 | -10/Subcaves | Core integrity fell below 20% 1900 | -10/Subcaves | Destroyed by FU-A7Q(R) with Subdweller Shrapnel Launcher Last Messages --------------- AE-MEG(c): "I think it's somewhere south of here" AE-MEG(c): "I think it's somewhere southwest of here" NN-GT2(R) destroyed. Switching to secondary target: J7-GHM(R). AE-MEG(c): "I think it's somewhere southwest of here" Subatomizers dissect the Sub. Power Source. J7-GHM(R) affixes Scrap Shield Fragment to Scrap Shield. J7-GHM(R) destroyed. Subatomizers dissect the Sub. Power Source. Protomatter-32 decays. AE-MEG(c): "I think it's somewhere southwest of here" 8X-LHG(z): "She is not going to be happy we haven't found any suitable candidates yet." Acquired 102 matter. Subatomizers dissect the Sub. Machine Gun. Map ----- +----------------------------------------------------+ | ?????????????????????????????????????????????????? | | ?????????????????????????????????????????????????? | | ?????????????????????????????????????????????????? | | ?????????????????????????????????????????????????? | | ?????????????????????????????????????????????????? | | ?????????????????????????????????????????????????? | | ?????????????????????????????????????????????????? | | ?????????????????????????????????????????????????? | | ?????????????????????????????????????????????????? | | ?????????????????????????????????????????????????? | | ?????????????????????????????????????????????????? | | ?????????????????????????????????????????????????? | | ????????????????????????#????????????????????????? | | ??????????????????????## ????????????????????????? | | ??????????????????????# ????????????????????????? | | ?###?????????????????? #???????????????????????? | | ## ######????????????? ###????????????????????? | | # # # ######????????? R ?????????????????????? | | # #???###??? ?????????????????????? | | #??## ##?? #?????????????????????? | | ### #### #??# ##????????????????????? | | ####?# ## #### ###??????????????????? | | #????## ## | ##;R ;;#??????????????????? | | #?????## ## [ = ;; ;#??????????????????? | | #??????####### #### * ;#??????????????????? | | ?????????????###??##% @ #??????????????????? | | ???????????????????##&;; c ???????????? | | ????????????????????#"#; ;;; ## ????????? | | ????????????????????#"#; ;; ###????? ?????????? | | ????????????????????###;#####????????????????????? | | ??????????????????????##?????????????????????????? | | ?????????????????????????????????????????????????? | | ?????????????????????????????????????????????????? | | ?????????????????????????????????????????????????? | | ?????????????????????????????????????????????????? | | ?????????????????????????????????????????????????? | | ?????????????????????????????????????????????????? | | ?????????????????????????????????????????????????? | | ?????????????????????????????????????????????????? | | ?????????????????????????????????????????????????? | | ?????????????????????????????????????????????????? | | ?????????????????????????????????????????????????? | | ?????????????????????????????????????????????????? | | ?????????????????????????????????????????????????? | | ?????????????????????????????????????????????????? | | ?????????????????????????????????????????????????? | | ?????????????????????????????????????????????????? | | ?????????????????????????????????????????????????? | | ?????????????????????????????????????????????????? | | ?????????????????????????????????????????????????? | +----------------------------------------------------+ Best States ------------- Heat Dissipation 61 Energy Generation 14 Energy Capacity 465 Matter Stores 300 Matter Capacity 300 Sight Range 16 Terrain Scan Density 10 Resistance: KI 5 Resistance: TH 5 Resistance: EX 5 Evasion (%) 55 Item Schematics ----------------- None Robot Schematics ------------------ None Fabricated ------------ Nothing Repaired ---------- Nothing Alien Tech Used ----------------- None Achievements -------------- None Challenges ------------ None RPGLIKE | -11 -10 -10 -10 --------- Run | Yrd Mat Min Sub Levels Raised 1 | . . 1 . XP Earned 5600 | 3000 500 1100 1000 XP Spent 4275 | 2975 . 1300 . Upgrades 17 | 14 . 3 . Propulsion Slot 1 | 1 . . . Utility Slot 1 | 1 . . . Weapon Slot 1 | 1 . . . Core Integrity 1 | 1 . . . Heat Dissipation 6 | 6 . . . Ranged Accuracy 3 | 1 . 2 . KI Resistance % 1 | 1 . . . TH Resistance % 1 | 1 . . . EX Resistance % 1 | 1 . . . KI Damage % 1 | . . 1 . Protomatter Created 64 | . 32 . 32 Integrity Restored 72 | . 72 . . Core 72 | . 72 . . Protomatter Decayed 82 | . 50 . 32 Game ------ Seed GhostLobotomyMapper Manual? 0 Play Time 00:19:55 Cumulative 34.4 hours Start 2025.05.30 @ 01:38:38 End 2025.05.30 @ 01:58:45 Sessions 1 Manual Loads 0 Difficulty Rogue Special Mode Winter2019/RPGLIKE Game No. 57 Rogue 57 Adventurer 0 Explorer 0 Win Type - Total 0 Types 0/0/0/0/0/0/0/0/0/0 Lore% 7 Gallery% 21 Achievement% 26 Wizard Run 0 Options --------- Layout 2 ASCII 0 Keyboard 0 Movement Mouse Keybinds 0 Fullscreen 1 Font 24/Smallcaps Map View 25x22 Zoom Use 76% Tactical HUD 0 Map Filters NONE Filters NONE Steam 1 RUN: ecfaa3f5-9e52-402e-a7f1-8dbb28130ce7